[Event "Titled Tuesday Blitz September 28 2021"]
[White "Suvorov, Alexander"]
[Black "Bach, Ngoc Thuy Duong"]
[WhiteFideId "12977063"]
[BlackFideId "12408956"]
[WhiteElo "2221"]
[BlackElo "1896"]
[Result "1-0"]
[Round "06"]
[TimeControl "180+1"]
[Date "2021.09.28"]
[WhiteClock "0:00:30"]
[BlackClock "0:00:08"]

1. b3 {[%clk 0:02:23]}  d5 {[%clk 0:02:58]} 2. Bb2 {[%clk 0:02:24]}  Nc6 {[%clk 0:02:57]} 3. e3 {[%clk 0:02:24]}  e5 {[%clk 0:02:49]} 4. Bb5 {[%clk 0:02:23]}  Bd6 {[%clk 0:02:40]} 5. Nf3 {[%clk 0:02:18]}  Qe7 {[%clk 0:02:38]} 6. d4 {[%clk 0:02:11]}  e4 {[%clk 0:02:31]} 7. Ne5 {[%clk 0:02:10]}  Bxe5 {[%clk 0:02:29]} 8. dxe5 {[%clk 0:02:09]}  Be6 {[%clk 0:02:29]} 9. O-O {[%clk 0:02:04]}  Nh6 {[%clk 0:02:24]} 10. Nc3 {[%clk 0:01:48]}  Rd8 {[%clk 0:02:12]} 11. Ne2 {[%clk 0:01:35]}  O-O {[%clk 0:01:50]} 12. Nf4 {[%clk 0:01:32]}  Qg5 {[%clk 0:01:24]} 13. Qh5 {[%clk 0:01:13]}  Qxh5 {[%clk 0:01:08]} 14. Nxh5 {[%clk 0:01:14]}  a6 {[%clk 0:00:59]} 15. Bxc6 {[%clk 0:01:06]}  bxc6 {[%clk 0:01:00]} 16. Nf4 {[%clk 0:01:06]}  Rfe8 {[%clk 0:00:58]} 17. Rfd1 {[%clk 0:01:05]}  Bg4 {[%clk 0:00:57]} 18. Rd4 {[%clk 0:01:04]}  Bc8 {[%clk 0:00:48]} 19. c4 {[%clk 0:00:52]}  Nf5 {[%clk 0:00:42]} 20. Rdd1 {[%clk 0:00:47]}  Be6 {[%clk 0:00:26]} 21. cxd5 {[%clk 0:00:45]}  cxd5 {[%clk 0:00:26]} 22. Rac1 {[%clk 0:00:45]}  Rd7 {[%clk 0:00:26]} 23. Rc6 {[%clk 0:00:44]}  Ne7 {[%clk 0:00:24]} 24. Rxa6 {[%clk 0:00:43]}  c6 {[%clk 0:00:21]} 25. Ba3 {[%clk 0:00:40]}  Bg4 {[%clk 0:00:19]} 26. Rc1 {[%clk 0:00:39]}  g5 {[%clk 0:00:17]} 27. h3 {[%clk 0:00:33]}  gxf4 {[%clk 0:00:17]} 28. hxg4 {[%clk 0:00:34]}  fxe3 {[%clk 0:00:17]} 29. fxe3 {[%clk 0:00:34]}  Ng6 {[%clk 0:00:16]} 30. Raxc6 {[%clk 0:00:33]}  Nxe5 {[%clk 0:00:16]} 31. Rc8 {[%clk 0:00:34]}  Rxc8 {[%clk 0:00:15]} 32. Rxc8+ {[%clk 0:00:35]}  Kg7 {[%clk 0:00:15]} 33. Bb2 {[%clk 0:00:34]}  f6 {[%clk 0:00:15]} 34. g5 {[%clk 0:00:34]}  Kg6 {[%clk 0:00:11]} 35. gxf6 {[%clk 0:00:33]}  Nd3 {[%clk 0:00:10]} 36. Bd4 {[%clk 0:00:33]}  Rf7 {[%clk 0:00:10]} 37. a4 {[%clk 0:00:32]}  Kf5 {[%clk 0:00:10]} 38. a5 {[%clk 0:00:32]}  Ne5 {[%clk 0:00:09]} 39. a6 {[%clk 0:00:30]}  Kxf6 {[%clk 0:00:09]} 40. a7 {[%clk 0:00:30]}  Rxa7 {[%clk 0:00:09]} 41. Bxa7 {[%clk 0:00:29]}  Nd3 {[%clk 0:00:09]} 42. Bd4+ {[%clk 0:00:30]}  Kg5 {[%clk 0:00:09]} 43. Rd8 {[%clk 0:00:30]}  Nb4 {[%clk 0:00:08]} 44. Bc3 {[%clk 0:00:31]}  Nd3 {[%clk 0:00:08]} 45. Rxd5+ {[%clk 0:00:30]} 1-0


[Site "https://www.chess.com"]

[Event "Titled Tuesday Blitz September 28 2021"]
[White "Svane, Rasmus"]
[Black "Tristan, Leonardo"]
[WhiteFideId "4657101"]
[BlackFideId "113816"]
[WhiteElo "2643"]
[BlackElo "2404"]
[Result "1-0"]
[Round "06"]
[TimeControl "180+1"]
[Date "2021.09.28"]
[WhiteClock "0:00:13"]
[BlackClock "0:00:06"]

1. Nf3 {[%clk 0:03:00]}  d5 {[%clk 0:03:00]} 2. g3 {[%clk 0:03:00]}  Nd7 {[%clk 0:03:00]} 3. d4 {[%clk 0:03:00]}  Nb6 {[%clk 0:03:01]} 4. Nc3 {[%clk 0:03:00]}  Nf6 {[%clk 0:02:59]} 5. a4 {[%clk 0:02:58]}  a5 {[%clk 0:02:59]} 6. Bg2 {[%clk 0:02:58]}  Bf5 {[%clk 0:02:59]} 7. Nh4 {[%clk 0:02:58]}  Be4 {[%clk 0:02:47]} 8. Nxe4 {[%clk 0:02:35]}  Nxe4 {[%clk 0:02:32]} 9. Qd3 {[%clk 0:02:27]}  Nf6 {[%clk 0:02:08]} 10. Bg5 {[%clk 0:02:26]}  e6 {[%clk 0:02:08]} 11. Bxf6 {[%clk 0:02:26]}  Qxf6 {[%clk 0:02:05]} 12. Qb5+ {[%clk 0:02:26]}  Kd8 {[%clk 0:02:01]} 13. c3 {[%clk 0:02:22]}  Qe7 {[%clk 0:01:56]} 14. e4 {[%clk 0:02:16]}  Qd7 {[%clk 0:01:53]} 15. Qb3 {[%clk 0:02:15]}  Be7 {[%clk 0:01:49]} 16. Nf3 {[%clk 0:02:14]}  Bf6 {[%clk 0:01:38]} 17. O-O {[%clk 0:02:14]}  Re8 {[%clk 0:01:12]} 18. Rfe1 {[%clk 0:02:13]}  Qc6 {[%clk 0:01:09]} 19. exd5 {[%clk 0:02:08]}  exd5 {[%clk 0:01:08]} 20. Rxe8+ {[%clk 0:02:08]}  Kxe8 {[%clk 0:01:08]} 21. Nd2 {[%clk 0:01:33]}  Kf8 {[%clk 0:01:06]} 22. Nf1 {[%clk 0:01:34]}  Bg5 {[%clk 0:01:00]} 23. f4 {[%clk 0:01:31]}  Bf6 {[%clk 0:00:58]} 24. Ne3 {[%clk 0:01:31]}  Rd8 {[%clk 0:00:58]} 25. Kf2 {[%clk 0:01:14]}  Rd7 {[%clk 0:00:57]} 26. Bf3 {[%clk 0:01:13]}  Qd6 {[%clk 0:00:55]} 27. Re1 {[%clk 0:01:11]}  Bd8 {[%clk 0:00:55]} 28. Qb5 {[%clk 0:01:08]}  c6 {[%clk 0:00:46]} 29. Qxa5 {[%clk 0:01:07]}  Nc4 {[%clk 0:00:44]} 30. Nxc4 {[%clk 0:01:07]}  Bxa5 {[%clk 0:00:42]} 31. Nxd6 {[%clk 0:01:06]}  Rxd6 {[%clk 0:00:43]} 32. b4 {[%clk 0:01:05]}  Bc7 {[%clk 0:00:41]} 33. a5 {[%clk 0:00:59]}  Re6 {[%clk 0:00:40]} 34. Ra1 {[%clk 0:00:58]}  Re8 {[%clk 0:00:36]} 35. Be2 {[%clk 0:00:42]}  Ke7 {[%clk 0:00:32]} 36. Bd3 {[%clk 0:00:41]}  Kd6 {[%clk 0:00:29]} 37. h4 {[%clk 0:00:35]}  h6 {[%clk 0:00:30]} 38. Kf3 {[%clk 0:00:35]}  Ra8 {[%clk 0:00:26]} 39. g4 {[%clk 0:00:35]}  b6 {[%clk 0:00:25]} 40. a6 {[%clk 0:00:32]}  b5 {[%clk 0:00:26]} 41. g5 {[%clk 0:00:30]}  hxg5 {[%clk 0:00:22]} 42. fxg5 {[%clk 0:00:27]}  Bd8 {[%clk 0:00:21]} 43. Kg4 {[%clk 0:00:27]}  Be7 {[%clk 0:00:20]} 44. h5 {[%clk 0:00:25]}  Bf8 {[%clk 0:00:19]} 45. Bh7 {[%clk 0:00:19]}  Kc7 {[%clk 0:00:13]} 46. Bg8 {[%clk 0:00:19]}  f6 {[%clk 0:00:14]} 47. g6 {[%clk 0:00:14]}  Kd7 {[%clk 0:00:11]} 48. Kf5 {[%clk 0:00:13]}  Be7 {[%clk 0:00:10]} 49. Be6+ {[%clk 0:00:13]}  Kd6 {[%clk 0:00:10]} 50. a7 {[%clk 0:00:13]}  Bd8 {[%clk 0:00:08]} 51. h6 {[%clk 0:00:12]}  gxh6 {[%clk 0:00:06]} 52. g7 {[%clk 0:00:13]} 1-0


[Site "https://www.chess.com"]

[Event "Titled Tuesday Blitz September 28 2021"]
[White "Tang, Andrew"]
[Black "Babazada, Khazar"]
[WhiteFideId "2059630"]
[BlackFideId "13413554"]
[WhiteElo "2976"]
[BlackElo "2791"]
[Result "1-0"]
[Round "06"]
[TimeControl "180+1"]
[Date "2021.09.28"]
[WhiteClock "0:00:49"]
[BlackClock "0:01:12"]

1. d4 {[%clk 0:03:00]}  d5 {[%clk 0:02:59]} 2. Bf4 {[%clk 0:02:59]}  Nf6 {[%clk 0:02:59]} 3. e3 {[%clk 0:03:00]}  g6 {[%clk 0:02:58]} 4. Nf3 {[%clk 0:02:54]}  Bg7 {[%clk 0:02:59]} 5. Be2 {[%clk 0:02:54]}  O-O {[%clk 0:03:00]} 6. O-O {[%clk 0:02:53]}  c6 {[%clk 0:02:59]} 7. c4 {[%clk 0:02:44]}  dxc4 {[%clk 0:02:57]} 8. Bxc4 {[%clk 0:02:38]}  b5 {[%clk 0:02:57]} 9. Bb3 {[%clk 0:02:34]}  Nbd7 {[%clk 0:02:57]} 10. Nc3 {[%clk 0:02:30]}  Bb7 {[%clk 0:02:57]} 11. Qe2 {[%clk 0:02:25]}  a6 {[%clk 0:02:55]} 12. e4 {[%clk 0:02:15]}  c5 {[%clk 0:02:55]} 13. e5 {[%clk 0:01:28]}  Nh5 {[%clk 0:02:49]} 14. Be3 {[%clk 0:01:28]}  cxd4 {[%clk 0:02:50]} 15. Bxd4 {[%clk 0:01:29]}  Bxf3 {[%clk 0:02:48]} 16. gxf3 {[%clk 0:01:30]}  e6 {[%clk 0:02:45]} 17. Kh1 {[%clk 0:01:17]}  Qh4 {[%clk 0:02:40]} 18. Rad1 {[%clk 0:01:16]}  Bh6 {[%clk 0:02:29]} 19. Rg1 {[%clk 0:01:12]}  Bf4 {[%clk 0:02:25]} 20. Rg2 {[%clk 0:01:10]}  Rad8 {[%clk 0:02:26]} 21. Qe4 {[%clk 0:01:09]}  Ng7 {[%clk 0:01:11]} 22. Be3 {[%clk 0:00:49]}  g5 {[%clk 0:01:11]} 23. Bxf4 {[%clk 0:00:49]}  gxf4 {[%clk 0:01:12]} 24. Rdg1 {[%clk 0:00:49]} 1-0


[Site "https://www.chess.com"]

[Event "Titled Tuesday Blitz September 28 2021"]
[White "Terry, Renato"]
[Black "Warmerdam, Max"]
[WhiteFideId "3803457"]
[BlackFideId "1048104"]
[WhiteElo "2577"]
[BlackElo "2537"]
[Result "1-0"]
[Round "06"]
[TimeControl "180+1"]
[Date "2021.09.28"]
[WhiteClock "0:00:51"]
[BlackClock "0:00:02"]

1. d4 {[%clk 0:03:00]}  d5 {[%clk 0:02:59]} 2. Bg5 {[%clk 0:03:01]}  f6 {[%clk 0:02:56]} 3. Bf4 {[%clk 0:03:01]}  c5 {[%clk 0:02:54]} 4. e3 {[%clk 0:02:58]}  Nc6 {[%clk 0:02:53]} 5. c4 {[%clk 0:02:48]}  cxd4 {[%clk 0:02:47]} 6. exd4 {[%clk 0:02:48]}  e5 {[%clk 0:02:09]} 7. dxe5 {[%clk 0:02:47]}  fxe5 {[%clk 0:02:10]} 8. cxd5 {[%clk 0:02:48]}  exf4 {[%clk 0:02:09]} 9. Qh5+ {[%clk 0:02:15]}  g6 {[%clk 0:02:07]} 10. Qe2+ {[%clk 0:02:16]}  Qe7 {[%clk 0:00:50]} 11. dxc6 {[%clk 0:02:15]}  bxc6 {[%clk 0:00:49]} 12. Nc3 {[%clk 0:02:12]}  Bg4 {[%clk 0:00:45]} 13. Qxe7+ {[%clk 0:02:07]}  Bxe7 {[%clk 0:00:44]} 14. Be2 {[%clk 0:02:08]}  Bf5 {[%clk 0:00:42]} 15. Nf3 {[%clk 0:01:59]}  Bf6 {[%clk 0:00:42]} 16. O-O-O {[%clk 0:01:56]}  Ne7 {[%clk 0:00:42]} 17. Bc4 {[%clk 0:01:56]}  Rd8 {[%clk 0:00:39]} 18. Rhe1 {[%clk 0:01:52]}  g5 {[%clk 0:00:39]} 19. Ne5 {[%clk 0:01:37]}  Rxd1+ {[%clk 0:00:38]} 20. Kxd1 {[%clk 0:01:38]}  Bxe5 {[%clk 0:00:31]} 21. Rxe5 {[%clk 0:01:39]}  Kd7 {[%clk 0:00:28]} 22. Ra5 {[%clk 0:01:39]}  Ra8 {[%clk 0:00:27]} 23. Ne2 {[%clk 0:01:23]}  h6 {[%clk 0:00:27]} 24. h4 {[%clk 0:01:23]}  Nd5 {[%clk 0:00:14]} 25. hxg5 {[%clk 0:01:19]}  hxg5 {[%clk 0:00:15]} 26. Bxd5 {[%clk 0:01:20]}  cxd5 {[%clk 0:00:16]} 27. Rxd5+ {[%clk 0:01:21]}  Ke6 {[%clk 0:00:16]} 28. Ra5 {[%clk 0:01:20]}  Rd8+ {[%clk 0:00:17]} 29. Ke1 {[%clk 0:01:20]}  Rd7 {[%clk 0:00:17]} 30. Nc3 {[%clk 0:01:11]}  g4 {[%clk 0:00:15]} 31. f3 {[%clk 0:01:01]}  g3 {[%clk 0:00:14]} 32. Ne2 {[%clk 0:01:01]}  Kf6 {[%clk 0:00:09]} 33. Nxf4 {[%clk 0:01:00]}  Rd6 {[%clk 0:00:08]} 34. Nh5+ {[%clk 0:00:59]}  Ke6 {[%clk 0:00:08]} 35. Nxg3 {[%clk 0:01:00]}  Bb1 {[%clk 0:00:08]} 36. Ne2 {[%clk 0:00:57]}  Kf6 {[%clk 0:00:05]} 37. g4 {[%clk 0:00:57]}  Bd3 {[%clk 0:00:05]} 38. Nf4 {[%clk 0:00:57]}  Bc4 {[%clk 0:00:03]} 39. g5+ {[%clk 0:00:56]}  Kg7 {[%clk 0:00:03]} 40. Rxa7+ {[%clk 0:00:56]}  Kg8 {[%clk 0:00:03]} 41. a4 {[%clk 0:00:53]}  Rd4 {[%clk 0:00:02]} 42. Nh5 {[%clk 0:00:53]}  Bf7 {[%clk 0:00:03]} 43. g6 {[%clk 0:00:51]}  Bxg6 {[%clk 0:00:02]} 44. Rg7+ {[%clk 0:00:51]}  Kf8 {[%clk 0:00:02]} 45. Rxg6 {[%clk 0:00:51]} 1-0


[Site "https://www.chess.com"]

[Event "Titled Tuesday Blitz September 28 2021"]
[White "Timmermans, Mark"]
[Black "Sjugirov, Sanan"]
[WhiteFideId "1026399"]
[BlackFideId "4189302"]
[WhiteElo "2460"]
[BlackElo "2654"]
[Result "1/2-1/2"]
[Round "06"]
[TimeControl "180+1"]
[Date "2021.09.28"]
[WhiteClock "0:01:03"]
[BlackClock "0:00:12"]

1. b4 {[%clk 0:03:00]}  d5 {[%clk 0:02:56]} 2. Bb2 {[%clk 0:03:01]}  Nf6 {[%clk 0:02:55]} 3. b5 {[%clk 0:02:57]}  g6 {[%clk 0:02:48]} 4. e3 {[%clk 0:02:56]}  Bg7 {[%clk 0:02:48]} 5. a4 {[%clk 0:02:53]}  O-O {[%clk 0:02:47]} 6. Nf3 {[%clk 0:02:53]}  Bg4 {[%clk 0:02:37]} 7. Be2 {[%clk 0:02:53]}  Qd6 {[%clk 0:02:32]} 8. O-O {[%clk 0:02:38]}  Bxf3 {[%clk 0:02:29]} 9. Bxf3 {[%clk 0:02:38]}  Ng4 {[%clk 0:02:19]} 10. Bxg4 {[%clk 0:02:33]}  Bxb2 {[%clk 0:02:19]} 11. Ra2 {[%clk 0:02:34]}  Bg7 {[%clk 0:02:19]} 12. d4 {[%clk 0:02:34]}  a6 {[%clk 0:02:18]} 13. Rb2 {[%clk 0:02:30]}  axb5 {[%clk 0:02:17]} 14. axb5 {[%clk 0:02:30]}  Nd7 {[%clk 0:02:15]} 15. Bxd7 {[%clk 0:02:28]}  Qxd7 {[%clk 0:02:16]} 16. Nd2 {[%clk 0:02:28]}  e5 {[%clk 0:02:01]} 17. c3 {[%clk 0:02:28]}  Ra5 {[%clk 0:01:54]} 18. Qe2 {[%clk 0:02:27]}  Rfa8 {[%clk 0:01:49]} 19. h3 {[%clk 0:02:27]}  Ra2 {[%clk 0:01:43]} 20. Rfb1 {[%clk 0:02:27]}  Rxb2 {[%clk 0:01:43]} 21. Rxb2 {[%clk 0:02:28]}  Qd6 {[%clk 0:01:42]} 22. Qd1 {[%clk 0:02:21]}  Ra3 {[%clk 0:01:38]} 23. Qc2 {[%clk 0:02:14]}  h6 {[%clk 0:01:32]} 24. Rb3 {[%clk 0:02:14]}  Ra8 {[%clk 0:01:31]} 25. Nf3 {[%clk 0:02:10]}  e4 {[%clk 0:00:52]} 26. Nd2 {[%clk 0:02:06]}  c5 {[%clk 0:00:47]} 27. bxc6 {[%clk 0:02:00]}  bxc6 {[%clk 0:00:47]} 28. c4 {[%clk 0:01:57]}  c5 {[%clk 0:00:47]} 29. cxd5 {[%clk 0:01:57]}  cxd4 {[%clk 0:00:41]} 30. Qxe4 {[%clk 0:01:57]}  Ra1+ {[%clk 0:00:33]} 31. Rb1 {[%clk 0:01:55]}  Rxb1+ {[%clk 0:00:32]} 32. Nxb1 {[%clk 0:01:51]}  Qb4 {[%clk 0:00:28]} 33. exd4 {[%clk 0:01:45]}  Bxd4 {[%clk 0:00:28]} 34. Kh2 {[%clk 0:01:32]}  Qb8+ {[%clk 0:00:26]} 35. f4 {[%clk 0:01:28]}  Qb4 {[%clk 0:00:24]} 36. Kg3 {[%clk 0:01:18]}  Kg7 {[%clk 0:00:20]} 37. d6 {[%clk 0:01:07]}  Qxd6 {[%clk 0:00:20]} 38. Nd2 {[%clk 0:01:06]}  Bf6 {[%clk 0:00:16]} 39. Nf3 {[%clk 0:01:04]}  Qc7 {[%clk 0:00:16]} 40. Kf2 {[%clk 0:01:03]}  Qb6+ {[%clk 0:00:16]} 41. Qe3 {[%clk 0:01:03]}  Qc7 {[%clk 0:00:16]} 42. g4 {[%clk 0:01:02]}  Qc2+ {[%clk 0:00:14]} 43. Qe2 {[%clk 0:01:02]}  Qc5+ {[%clk 0:00:12]} 44. Qe3 {[%clk 0:01:02]}  Qc2+ {[%clk 0:00:12]} 45. Qe2 {[%clk 0:01:03]}  Qc5+ {[%clk 0:00:12]} 46. Qe3 {[%clk 0:01:03]}  Qc2+ {[%clk 0:00:12]} 1/2-1/2


[Site "https://www.chess.com"]

[Event "Titled Tuesday Blitz September 28 2021"]
[White "Tsydypov, Zhamsaran"]
[Black "Zhigalko, Sergei"]
[WhiteFideId "4108566"]
[BlackFideId "13502956"]
[WhiteElo "2970"]
[BlackElo "2892"]
[Result "1-0"]
[Round "06"]
[TimeControl "180+1"]
[Date "2021.09.28"]
[WhiteClock "0:00:11"]
[BlackClock "0:00:02"]

1. d4 {[%clk 0:03:00]}  Nf6 {[%clk 0:02:56]} 2. c4 {[%clk 0:02:59]}  e6 {[%clk 0:02:55]} 3. Nf3 {[%clk 0:02:59]}  b6 {[%clk 0:02:56]} 4. g3 {[%clk 0:02:57]}  Ba6 {[%clk 0:02:56]} 5. Qc2 {[%clk 0:02:57]}  Bb4+ {[%clk 0:02:54]} 6. Bd2 {[%clk 0:02:56]}  Be7 {[%clk 0:02:52]} 7. e4 {[%clk 0:02:53]}  d5 {[%clk 0:02:52]} 8. cxd5 {[%clk 0:02:53]}  Bxf1 {[%clk 0:02:53]} 9. Kxf1 {[%clk 0:02:50]}  exd5 {[%clk 0:02:54]} 10. e5 {[%clk 0:02:45]}  Ne4 {[%clk 0:02:54]} 11. Nc3 {[%clk 0:02:41]}  Nxd2+ {[%clk 0:02:53]} 12. Qxd2 {[%clk 0:02:37]}  Qd7 {[%clk 0:02:51]} 13. Kg2 {[%clk 0:02:37]}  Nc6 {[%clk 0:02:51]} 14. Rac1 {[%clk 0:02:35]}  Nd8 {[%clk 0:02:45]} 15. Rhd1 {[%clk 0:02:32]}  Ne6 {[%clk 0:02:44]} 16. Ne2 {[%clk 0:02:30]}  O-O {[%clk 0:02:27]} 17. Nf4 {[%clk 0:02:28]}  Rac8 {[%clk 0:02:25]} 18. h4 {[%clk 0:02:27]}  c6 {[%clk 0:02:13]} 19. h5 {[%clk 0:02:09]}  h6 {[%clk 0:02:05]} 20. Ne2 {[%clk 0:02:04]}  Bg5 {[%clk 0:02:00]} 21. Nxg5 {[%clk 0:02:03]}  Nxg5 {[%clk 0:02:01]} 22. Nf4 {[%clk 0:02:01]}  f6 {[%clk 0:01:48]} 23. Qd3 {[%clk 0:01:31]}  fxe5 {[%clk 0:01:43]} 24. dxe5 {[%clk 0:01:30]}  Rxf4 {[%clk 0:00:32]} 25. gxf4 {[%clk 0:01:28]}  Ne6 {[%clk 0:00:33]} 26. Qg3 {[%clk 0:00:34]}  Rf8 {[%clk 0:00:32]} 27. Kf1 {[%clk 0:00:29]}  Nxf4 {[%clk 0:00:31]} 28. Rd4 {[%clk 0:00:29]}  Nxh5 {[%clk 0:00:12]} 29. Qg4 {[%clk 0:00:15]}  Qf7 {[%clk 0:00:13]} 30. Rc2 {[%clk 0:00:14]}  Nf4 {[%clk 0:00:11]} 31. Rxc6 {[%clk 0:00:13]}  h5 {[%clk 0:00:04]} 32. Qf3 {[%clk 0:00:12]}  Qf5 {[%clk 0:00:04]} 33. Rxf4 {[%clk 0:00:08]}  Qxf4 {[%clk 0:00:04]} 34. Qxf4 {[%clk 0:00:09]}  Rxf4 {[%clk 0:00:05]} 35. Rd6 {[%clk 0:00:09]}  Rd4 {[%clk 0:00:04]} 36. Rd7 {[%clk 0:00:08]}  a5 {[%clk 0:00:04]} 37. e6 {[%clk 0:00:09]}  Re4 {[%clk 0:00:03]} 38. Rd6 {[%clk 0:00:09]}  b5 {[%clk 0:00:03]} 39. f3 {[%clk 0:00:09]}  Re5 {[%clk 0:00:02]} 40. f4 {[%clk 0:00:09]}  Re4 {[%clk 0:00:02]} 41. Kg2 {[%clk 0:00:10]}  h4 {[%clk 0:00:02]} 42. Kf3 {[%clk 0:00:10]}  a4 {[%clk 0:00:02]} 43. f5 {[%clk 0:00:10]}  h3 {[%clk 0:00:02]} 44. Kg3 {[%clk 0:00:10]}  Re3+ {[%clk 0:00:03]} 45. Kh2 {[%clk 0:00:11]}  Kf8 {[%clk 0:00:02]} 46. Rxd5 {[%clk 0:00:11]}  Ke7 {[%clk 0:00:03]} 47. Rxb5 {[%clk 0:00:11]}  g6 {[%clk 0:00:02]} 48. fxg6 {[%clk 0:00:11]}  Kxe6 {[%clk 0:00:02]} 49. Rg5 {[%clk 0:00:11]}  Re2+ {[%clk 0:00:01]} 50. Kxh3 {[%clk 0:00:11]}  Rc2 {[%clk 0:00:01]} 51. g7 {[%clk 0:00:11]}  Kf6 {[%clk 0:00:02]} 52. g8=Q {[%clk 0:00:11]} 1-0


[Site "https://www.chess.com"]

[Event "Titled Tuesday Blitz September 28 2021"]
[White "Weetik, Vjacheslav"]
[Black "Gracia Alvarez, Gerardo Antonio"]
[WhiteFideId "4153472"]
[BlackFideId "5109124"]
[WhiteElo "2469"]
[BlackElo "2148"]
[Result "0-1"]
[Round "06"]
[TimeControl "180+1"]
[Date "2021.09.28"]
[WhiteClock "0:00:09"]
[BlackClock "0:00:26"]

1. e4 {[%clk 0:02:48]}  c5 {[%clk 0:02:59]} 2. Nf3 {[%clk 0:02:48]}  Nc6 {[%clk 0:03:00]} 3. Bb5 {[%clk 0:02:46]}  g6 {[%clk 0:03:00]} 4. O-O {[%clk 0:02:45]}  Bg7 {[%clk 0:03:00]} 5. Nc3 {[%clk 0:02:45]}  Nf6 {[%clk 0:02:53]} 6. e5 {[%clk 0:02:45]}  Ng4 {[%clk 0:02:51]} 7. Bxc6 {[%clk 0:02:44]}  dxc6 {[%clk 0:02:50]} 8. Re1 {[%clk 0:02:42]}  Nh6 {[%clk 0:02:44]} 9. Ne4 {[%clk 0:02:33]}  b6 {[%clk 0:02:37]} 10. d4 {[%clk 0:02:15]}  cxd4 {[%clk 0:02:35]} 11. Nxd4 {[%clk 0:02:08]}  Nf5 {[%clk 0:02:26]} 12. Nxc6 {[%clk 0:01:25]}  Qxd1 {[%clk 0:02:22]} 13. Rxd1 {[%clk 0:01:25]}  Bb7 {[%clk 0:02:23]} 14. Nxe7 {[%clk 0:00:57]}  Bxe4 {[%clk 0:02:12]} 15. Nxf5 {[%clk 0:00:55]}  Bxf5 {[%clk 0:02:11]} 16. c3 {[%clk 0:00:55]}  O-O {[%clk 0:02:07]} 17. Bf4 {[%clk 0:00:55]}  Rfd8 {[%clk 0:02:06]} 18. h3 {[%clk 0:00:53]}  Kf8 {[%clk 0:02:03]} 19. Rd6 {[%clk 0:00:47]}  Rxd6 {[%clk 0:01:57]} 20. exd6 {[%clk 0:00:47]}  Re8 {[%clk 0:01:51]} 21. Rd1 {[%clk 0:00:44]}  Bd7 {[%clk 0:01:51]} 22. Rd2 {[%clk 0:00:17]}  Re6 {[%clk 0:01:49]} 23. f3 {[%clk 0:00:16]}  Be5 {[%clk 0:01:49]} 24. Bxe5 {[%clk 0:00:15]}  Rxe5 {[%clk 0:01:49]} 25. Kf2 {[%clk 0:00:16]}  f5 {[%clk 0:01:44]} 26. c4 {[%clk 0:00:16]}  a5 {[%clk 0:01:40]} 27. b3 {[%clk 0:00:16]}  Kf7 {[%clk 0:01:27]} 28. a3 {[%clk 0:00:17]}  b5 {[%clk 0:01:25]} 29. cxb5 {[%clk 0:00:10]}  Rxb5 {[%clk 0:01:23]} 30. Rd3 {[%clk 0:00:09]}  Ke6 {[%clk 0:01:23]} 31. Ke3 {[%clk 0:00:08]}  Rd5 {[%clk 0:01:13]} 32. Rxd5 {[%clk 0:00:08]}  Kxd5 {[%clk 0:01:13]} 33. Kf4 {[%clk 0:00:09]}  h6 {[%clk 0:00:59]} 34. h4 {[%clk 0:00:09]}  Kxd6 {[%clk 0:00:57]} 35. b4 {[%clk 0:00:09]}  a4 {[%clk 0:00:56]} 36. g4 {[%clk 0:00:09]}  fxg4 {[%clk 0:00:54]} 37. fxg4 {[%clk 0:00:10]}  Kd5 {[%clk 0:00:54]} 38. g5 {[%clk 0:00:07]}  h5 {[%clk 0:00:46]} 39. Ke3 {[%clk 0:00:08]}  Bb5 {[%clk 0:00:34]} 40. Kf4 {[%clk 0:00:06]}  Kd4 {[%clk 0:00:33]} 41. Kf3 {[%clk 0:00:06]}  Ke5 {[%clk 0:00:30]} 42. Ke3 {[%clk 0:00:06]}  Ba6 {[%clk 0:00:30]} 43. Kf3 {[%clk 0:00:06]}  Kf5 {[%clk 0:00:28]} 44. Ke3 {[%clk 0:00:06]}  Kg4 {[%clk 0:00:28]} 45. Kd4 {[%clk 0:00:07]}  Kxh4 {[%clk 0:00:28]} 46. Kc5 {[%clk 0:00:08]}  Kxg5 {[%clk 0:00:28]} 47. b5 {[%clk 0:00:09]}  Bb7 {[%clk 0:00:27]} 48. Kb6 {[%clk 0:00:09]}  Bf3 {[%clk 0:00:26]} 0-1


[Site "https://www.chess.com"]